fUSD/lending_fUSD_20260404
["ID","MTS","AMOUNT","RATE_DAILY","PERIOD"]
[419735798,1775343102686,-672.32,0.00036054,9]
[419735799,1775343102695,-450.02431073,0.00036054,9]
[419735800,1775343102705,-500.0,0.00036054,9]
[419735801,1775343102714,-500.0,0.00036054,9]
[419735802,1775343102724,-606.86,0.00036054,9]
[419735803,1775343102734,-765.85,0.00036054,9]
[419735804,1775343102743,-500.0,0.00036054,9]
[419735805,1775343102752,-1378.45,0.00036054,9]
[419735806,1775343102762,-741.14,0.00036054,9]
[419735807,1775343102772,-1663.71,0.00036054,9]
[419735808,1775343102781,-500.0,0.00036054,9]
[419735809,1775343102791,-500.0,0.00036054,9]
[419735810,1775343102800,-1915.94,0.00036054,9]
[419735811,1775343102809,-1130.86,0.00036054,9]
[419735812,1775343102819,-500.0,0.00036054,9]
[419735813,1775343102828,-500.0,0.00036054,9]
[419735814,1775343102838,-549.08,0.00036054,9]
[419735815,1775343102847,-500.0,0.00036054,9]
[419735816,1775343102856,-500.0,0.00036054,9]
[419735817,1775343102866,-1690.04,0.00036054,9]
[419735818,1775343102875,-500.0,0.00036054,9]
[419735819,1775343102885,-1329.28,0.00036054,9]
[419735820,1775343102894,-500.0,0.00036054,9]
[419735821,1775343102903,-534.43,0.00036054,9]
[419735822,1775343102913,-500.0,0.00036054,9]
[419735823,1775343102922,-1382.34,0.00036054,9]
[419735824,1775343102932,-500.0,0.00036054,9]
[419735825,1775343102941,-500.0,0.00036054,9]
[419735826,1775343102950,-500.0,0.00036054,9]
[419735827,1775343102959,-1193.51,0.00036054,9]
[419735828,1775343102969,-897.17,0.00036054,9]
[419735829,1775343102978,-500.0,0.00036054,9]
[419735830,1775343102987,-500.0,0.00036054,9]
[419735831,1775343102996,-504.48508264,0.00036054,9]
[419735832,1775343103006,-500.0,0.00036054,9]
[419735833,1775343103016,-937.25,0.00036054,9]
[419735834,1775343103025,-500.0,0.00036054,9]
[419735835,1775343103034,-724.42,0.00036054,9]
[419735836,1775343103044,-500.0,0.00036054,9]
[419735837,1775343103053,-519.54,0.00036054,9]
[419735838,1775343103063,-1398.89,0.00036054,9]
[419735839,1775343103072,-500.0,0.00036054,9]
[419735840,1775343103081,-500.0,0.00036054,9]
[419735841,1775343103091,-500.0,0.00036054,9]
[419735842,1775343103101,-541.58,0.00036054,9]
[419735843,1775343103110,-500.0,0.00036054,9]
[419735844,1775343103119,-393.39547262,0.00036054,9]
[419735845,1775343103129,-500.0,0.00036054,9]
[419735846,1775343103138,-500.0,0.00036054,9]
[419735847,1775343103147,-150.0,0.00036054,7]
[419735848,1775343103228,-2008.99,0.00036054,9]
[419735849,1775343103238,-500.0,0.00036054,9]
[419735850,1775343103247,-2109.55,0.00036054,9]
[419735851,1775343103256,-500.0,0.00036054,9]
[419735852,1775343103266,-500.0,0.00036054,9]
[419735853,1775343103276,-502.32301218,0.00036054,9]
[419735854,1775343103285,-500.0,0.00036054,9]
[419735855,1775343103294,-500.0,0.00036054,9]
[419735856,1775343103304,-500.0,0.00036054,9]
[419735857,1775343103313,-500.0,0.00036054,9]
[419735858,1775343103322,-1013.55,0.00036054,7]
[419735859,1775343103332,-500.0,0.00036054,9]
[419735860,1775343103341,-500.0,0.00036054,9]
[419735861,1775343103350,-1099.85,0.00036054,9]
[419735862,1775343103360,-579.75,0.00036054,9]
[419735863,1775343103370,-1452.35,0.00036054,9]
[419735864,1775343103379,-500.0,0.00036054,9]
[419735865,1775343103389,-500.0,0.00036054,7]
[419735866,1775343103399,-500.0,0.00036054,9]
[419735867,1775343103409,-771.15,0.00036054,9]
[419735868,1775343103419,-500.0,0.00036054,9]
[419735869,1775343103428,-500.0,0.00036054,9]
[419735870,1775343103437,-500.0,0.00036054,9]
[419735871,1775343103446,-500.0,0.00036054,9]
[419735872,1775343103456,-538.18,0.00036054,9]
[419735873,1775343103465,-986.56,0.00036054,9]
[419735874,1775343103475,-500.0,0.00036054,9]
[419735875,1775343103484,-1088.69,0.00036054,9]
[419735876,1775343103493,-942.18,0.00036054,9]
[419735877,1775343103502,-500.0,0.00036054,9]
[419735878,1775343103511,-500.0,0.00036054,9]
[419735879,1775343103521,-500.0,0.00036054,9]
[419735880,1775343103530,-2613.48,0.00036054,9]
[419735881,1775343103540,-500.0,0.00036054,9]
[419735882,1775343103550,-1206.26,0.00036054,9]
[419735883,1775343103559,-500.0,0.00036054,9]
[419735884,1775343103570,-1189.17,0.00036054,9]
[419735885,1775343103580,-500.0,0.00036054,9]
[419735886,1775343103590,-500.0,0.00036054,9]
[419735887,1775343103599,-500.0,0.00036054,9]
[419735888,1775343103609,-524.02,0.00036054,9]
[419735889,1775343103618,-812.64,0.00036054,9]
[419735890,1775343103628,-500.0,0.00036054,9]
[419735891,1775343103637,-500.0,0.00036054,9]
[419735892,1775343103647,-500.0,0.00036054,9]
[419735893,1775343103656,-500.0,0.00036054,9]
[419735894,1775343103666,-544.1,0.00036054,9]
[419735895,1775343103675,-770.48,0.00036054,9]
[419735896,1775343103686,-500.0,0.00036054,9]
[419735897,1775343103696,-512.68,0.00036054,9]
[419735898,1775343103705,-500.0,0.00036054,9]
[419735899,1775343103714,-500.0,0.00036054,9]
[419735900,1775343103724,-632.18,0.00036054,9]
[419735901,1775343103734,-500.0,0.00036054,9]
[419735902,1775343103743,-500.0,0.00036054,9]
[419735903,1775343103752,-500.0,0.00036054,30]
[419735904,1775343103762,-500.0,0.00036054,9]
[419735905,1775343103772,-500.0,0.00036054,9]
[419735906,1775343103781,-391.04821718,0.00036054,9]
[419735907,1775343103791,-500.0,0.00036054,9]
[419735908,1775343103800,-500.0,0.00036054,9]
[419735909,1775343103810,-1602.75,0.00036054,9]
[419735910,1775343103819,-500.0,0.00036054,9]
[419735911,1775343103828,-988.44,0.00036054,9]
[419735912,1775343103837,-536.24789101,0.00036054,9]
[419735913,1775343103846,-575.36472223,0.00036054,9]
[419735914,1775343103856,-1179.08,0.00036054,9]
[419735915,1775343103866,-500.0,0.00036054,9]
[419735916,1775343103875,-500.0,0.00036054,9]
[419735917,1775343103885,-500.0,0.00036054,9]
[419735918,1775343103894,-500.0,0.00036054,9]
[419735919,1775343103904,-868.49,0.00036054,9]
[419735920,1775343103913,-500.0,0.00036054,9]
[419735921,1775343103923,-500.0,0.00036054,9]
[419735922,1775343103932,-500.0,0.00036054,9]
[419735923,1775343103941,-193.33823457,0.00036054,9]
[419735924,1775343103951,-500.0,0.00036054,9]
[419735925,1775343103961,-500.0,0.00036054,9]
[419735926,1775343103970,-500.0,0.00036054,9]
[419735927,1775343103980,-1040.56,0.00036054,9]
[419735928,1775343103989,-818.52,0.00036054,9]
[419735929,1775343103999,-500.0,0.00036054,9]
[419735930,1775343104008,-500.0,0.00036054,9]
[419735931,1775343104018,-879.69,0.00036054,9]
[419735932,1775343104027,-500.0,0.00036054,9]
[419735933,1775343104037,-500.0,0.00036054,9]
[419735934,1775343104046,-500.0,0.00036054,9]
[419735935,1775343104056,-500.0,0.00036054,9]
[419735936,1775343104066,-500.0,0.00036054,9]
[419735937,1775343104075,-500.0,0.00036054,9]
[419735938,1775343104085,-2576.31,0.00036054,9]
[419735939,1775343104094,-276.23,0.00036054,9]
[419735940,1775343104104,-500.0,0.00036054,9]
[419735941,1775343104113,-852.33,0.00036054,9]
[419735942,1775343104122,-405.99729685,0.00036054,9]
[419735943,1775343104132,-706.41,0.00036054,9]
[419735944,1775343104141,-500.0,0.00036054,9]
[419735945,1775343104150,-2444.29,0.00036054,9]
[419735946,1775343104160,-500.0,0.00036054,9]
[419735947,1775343104170,-500.0,0.00036054,9]
[419735948,1775343104180,-500.0,0.00036054,9]
[419735949,1775343104189,-580.22,0.00036054,9]
[419735950,1775343104199,-500.0,0.00036054,9]
[419735951,1775343104209,-500.0,0.00036054,9]
[419735952,1775343104220,-500.0,0.00036054,9]
[419735953,1775343104230,-500.0,0.00036054,9]
[419735954,1775343104240,-500.0,0.00036054,9]
[419735955,1775343104250,-517.45,0.00036054,9]
[419735956,1775343104260,-500.0,0.00036054,9]
[419735957,1775343104270,-500.0,0.00036054,9]
[419735958,1775343104280,-500.0,0.00036054,9]
[419735959,1775343104290,-500.0,0.00036054,9]
[419735960,1775343104301,-500.0,0.00036054,9]
[419735961,1775343104311,-500.0,0.00036054,9]
[419735962,1775343104322,-500.0,0.00036054,9]
[419735963,1775343104333,-500.0,0.00036054,9]
[419735964,1775343104342,-500.0,0.00036054,9]
[419735965,1775343104352,-500.0,0.00036054,9]
[419735966,1775343104362,-500.0,0.00036054,9]
[419735967,1775343104372,-500.0,0.00036054,9]
[419735968,1775343104382,-747.84,0.00036054,9]
[419735969,1775343104392,-500.0,0.00036054,9]
[419735970,1775343104402,-1187.78,0.00036054,9]
[419735971,1775343104413,-1817.25,0.00036054,9]
[419735972,1775343104422,-500.0,0.00036054,9]
[419735973,1775343104432,-500.0,0.00036054,9]
[419735974,1775343104441,-500.0,0.00036054,9]
[419735975,1775343104451,-500.0,0.00036054,9]
[419735976,1775343104461,-500.0,0.00036054,9]
[419735977,1775343104470,-1035.6,0.00036054,9]
[419735978,1775343104479,-506.28,0.00036054,9]
[419735979,1775343104489,-500.0,0.00036054,9]
[419735980,1775343104499,-500.0,0.00036054,9]
[419735981,1775343104508,-547.91186759,0.00036054,9]
[419735982,1775343104517,-500.0,0.00036054,9]
[419735983,1775343104527,-500.0,0.00036054,9]
[419735984,1775343104539,-500.0,0.00036054,9]
[419735985,1775343104548,-500.0,0.00036054,9]
[419735986,1775343104558,-503.33,0.00036054,9]
[419735987,1775343104567,-789.32,0.00036054,9]
[419735988,1775343104576,-1126.63,0.00036054,9]
[419735989,1775343104586,-1259.74,0.00036054,9]
[419735990,1775343104595,-500.0,0.00036054,9]
[419735991,1775343104603,-500.0,0.00036054,9]
[419735992,1775343104613,-1740.53,0.00036054,9]
[419735993,1775343104623,-500.0,0.00036054,9]
[419735994,1775343104632,-868.53,0.00036054,9]
[419735995,1775343104642,-500.0,0.00036054,9]
[419735996,1775343104651,-500.0,0.00036054,9]
[419735997,1775343104661,-500.0,0.00036054,9]
[419735998,1775343104671,-302.61809574,0.00036054,9]
[419735999,1775343104680,-500.0,0.00036054,9]
[419736000,1775343104690,-500.0,0.00036054,9]
[419736001,1775343104699,-865.24,0.00036054,9]
[419736002,1775343104708,-500.0,0.00036054,9]
[419736003,1775343104718,-500.0,0.00036054,9]
[419736004,1775343104728,-762.26,0.00036054,9]
[419736005,1775343104737,-500.0,0.00036054,9]
[419736006,1775343104746,-1021.04,0.00036054,9]
[419736007,1775343104755,-500.0,0.00036054,9]
[419736008,1775343104765,-522.99558684,0.00036054,9]
[419736009,1775343104774,-500.0,0.00036054,9]
[419736010,1775343104783,-500.0,0.00036054,9]
[419736011,1775343104793,-500.0,0.00036054,9]
[419736012,1775343104802,-500.0,0.00036054,9]
[419736013,1775343104812,-500.0,0.00036054,9]
[419736014,1775343104822,-789.77,0.00036054,9]
[419736015,1775343104831,-1154.23,0.00036054,9]
[419736016,1775343104840,-500.0,0.00036054,9]
[419736017,1775343104849,-508.12,0.00036054,9]
[419736018,1775343104859,-500.0,0.00036054,9]
[419736019,1775343104868,-669.0,0.00036054,9]
[419736020,1775343104878,-588.16,0.00036054,9]
[419736021,1775343104889,-2538.92,0.00036054,9]
[419736022,1775343104899,-500.0,0.00036054,9]
[419736023,1775343104909,-500.0,0.00036054,9]
[419736024,1775343104918,-500.0,0.00036054,9]
[419736025,1775343104928,-500.0,0.00036054,9]
[419736026,1775343104937,-500.0,0.00036054,2]
[419736027,1775343104947,-392.11555887,0.00036054,9]
[419736028,1775343104956,-500.0,0.00036054,9]
[419736029,1775343104966,-665.37,0.00036054,9]
[419736030,1775343104976,-500.0,0.00036054,9]
[419736031,1775343104985,-500.0,0.00036054,9]
[419736032,1775343104995,-500.0,0.00036054,9]
[419736033,1775343105005,-500.0,0.00036054,9]
[419736034,1775343105015,-585.58,0.00036054,9]
[419736035,1775343105025,-834.75,0.00036054,9]
[419736036,1775343105035,-500.0,0.00036054,9]
[419736037,1775343105045,-500.0,0.00036054,9]
[419736038,1775343105054,-1325.23,0.00036054,9]
[419736039,1775343105064,-2606.48,0.00036054,9]
[419736040,1775343105075,-500.0,0.00036054,9]
[419736041,1775343105085,-500.0,0.00036054,9]
[419736042,1775343105096,-673.49191697,0.00036054,9]
[419736043,1775343106305,-279.924521,0.00022611,2]
[419736044,1775343106345,-645.075479,0.00022611,2]
[419736045,1775343106356,-925.0,0.00025611,2]
[419736046,1775343106366,-206.088054,0.00027397,2]
[419736047,1775343106376,-814.80534789,0.00028611,2]
[419736048,1775343107299,-43416.94681003,0.00012278,2]
[419736049,1775343107312,-2341.34682168,0.00012278,2]
[419736050,1775343107328,-653.74439782,0.00012278,2]
[419736051,1775343107406,-3485.83114502,0.00012278,2]
[419736082,1775344232583,-150.0,0.0001072,2]
[419736083,1775344232592,-250.0,0.00010885,2]
[419736085,1775344232601,-150.0,0.00011051,2]
[419736087,1775344232611,-176.73671519,0.00011484,2]
[419736089,1775344232620,-480.0,0.00011584,2]
[419736090,1775344232629,-300.0,0.00011584,2]
[419736091,1775344232639,-300.0,0.00011584,2]
[419736092,1775344232648,-1200.0,0.00011584,2]
[419736093,1775344232657,-10820.0,0.00011585,2]
[419736094,1775344232667,-500.0,0.000116,4]
[419736095,1775344232676,-1100.0,0.000117,4]
[419736096,1775344232685,-250.0,0.00011792,2]
[419736097,1775344232694,-250.0,0.00011792,2]
[419736098,1775344232704,-321.4894086,0.00011792,2]
[419736099,1775344232713,-600.0,0.00011792,2]
[419736100,1775344232723,-8084.47,0.00011797,2]
[419736101,1775344232732,-150.0,0.00011799,2]
[419736102,1775344232742,-150.99,0.000118,2]
[419736103,1775344232754,-9999.99,0.000118,2]
[419736104,1775344232763,-9277.79,0.000118,2]
[419736105,1775344232774,-299.99,0.000118,2]
[419736106,1775344232783,-999.99,0.000118,2]
[419736107,1775344232792,-1700.0,0.000118,4]
[419736108,1775344232801,-1620.66,0.00011871,2]
[419736109,1775344232811,-499.99,0.00011871,2]
[419736110,1775344232821,-4968.114,0.00011872,2]
[419736111,1775344232830,-262.622,0.00011872,2]
[419736112,1775344232839,-33029.0565,0.00011873,2]
[419736113,1775344232849,-1000.0,0.00011873,2]
[419736114,1775344232858,-2200.0,0.000119,4]
[419736115,1775344232868,-166.08637647,0.00011958,2]
[419736116,1775344232877,-418.79,0.00012155,2]
[419736117,1775344232887,-260.28,0.00012155,2]
[419736118,1775344232897,-2000.0,0.00012155,2]
[419736119,1775344232907,-20502.7,0.00012155,2]
[419736120,1775344232918,-500.0,0.00012155,2]
[419736121,1775344232927,-2302.98,0.00012155,2]
[419736122,1775344232936,-186.91439661,0.00012156,2]
[419736123,1775344232946,-26092.91719995,0.00012159,2]
[419736124,1775344232957,-869.0,0.00012247,2]
[419736125,1775344232967,-500.0,0.00012258,2]
[419736126,1775344232976,-2500.0,0.00012259,2]
[419736127,1775344232985,-495.66786549,0.00012259,2]
[419736128,1775344232994,-500.0,0.00012259,2]
[419736129,1775344233004,-500.0,0.00012259,2]
[419736130,1775344233014,-500.0,0.00012259,2]
[419736131,1775344233023,-500.0,0.00012259,2]
[419736132,1775344233032,-500.0,0.00012259,2]
[419736133,1775344233041,-500.0,0.00012259,2]
[419736134,1775344233050,-500.0,0.00012259,2]
[419736135,1775344233060,-500.0,0.00012259,2]
[419736136,1775344233069,-500.0,0.00012259,2]
[419736137,1775344233079,-500.0,0.00012259,2]
[419736138,1775344233090,-500.0,0.00012259,2]
[419736139,1775344233100,-500.0,0.00012259,2]
[419736140,1775344233171,-612.4138028,0.00012259,2]
[419736141,1775344233183,-500.0,0.00012259,2]
[419736142,1775344233192,-500.0,0.00012259,2]
[419736143,1775344233201,-500.0,0.00012259,2]
[419736144,1775344233211,-500.0,0.00012259,2]
[419736145,1775344233220,-500.0,0.00012259,2]
[419736146,1775344233230,-500.0,0.00012259,2]
[419736147,1775344233239,-500.0,0.00012259,2]
[419736148,1775344233249,-500.0,0.00012259,2]
[419736149,1775344233258,-1194.00415189,0.0001226,2]
[419736150,1775344233476,-829.98709775,0.0001226,2]
[419736151,1775344238490,-500.0,0.00012258,2]
[419736152,1775344238500,-500.0,0.00012258,2]
[419736153,1775344238512,-500.0,0.00012258,2]
[419736154,1775344238523,-500.0,0.00012258,2]
[419736155,1775344238533,-500.0,0.00012258,2]
[419736157,1775344238542,-500.0,0.00012258,2]
[419736159,1775344238552,-500.0,0.00012258,2]
[419736161,1775344238561,-500.0,0.00012258,2]
[419736163,1775344238571,-500.0,0.00012258,2]
[419736165,1775344238580,-500.0,0.00012258,2]
[419736167,1775344238589,-500.0,0.00012258,2]
[419736169,1775344238598,-500.0,0.00012258,2]
[419736171,1775344238608,-500.0,0.00012258,2]
[419736173,1775344238617,-500.0,0.00012258,2]
[419736174,1775344238626,-500.0,0.00012258,2]
[419736175,1775344238635,-440.0,0.00012258,2]
[419736177,1775344238645,-500.0,0.00012258,2]
[419736178,1775344238655,-500.0,0.00012258,2]
[419736179,1775344238665,-500.0,0.00012258,2]
[419736180,1775344238674,-500.0,0.00012258,2]
[419736181,1775344238683,-500.0,0.00012258,2]
[419736182,1775344238692,-500.0,0.00012258,2]
[419736183,1775344238702,-500.0,0.00012258,2]
[419736184,1775344238711,-500.0,0.00012258,2]
[419736186,1775344238720,-500.0,0.00012258,2]
[419736188,1775344238730,-500.0,0.00012258,2]
[419736190,1775344238739,-500.0,0.00012258,2]
[419736191,1775344238749,-500.0,0.00012258,2]
[419736192,1775344238759,-44104.820165,0.0001226,2]
[419736193,1775344238769,-336.15576131,0.00012273,2]
[419736194,1775344238780,-3269.6663019,0.00012273,2]
[419736195,1775344238790,-598.77510688,0.00012273,2]
[419736196,1775344238799,-324.0,0.00012329,2]
[419736197,1775344238808,-592.74505703,0.0001235,2]
[419736198,1775344238817,-592.74505703,0.0001235,2]
[419736199,1775344238826,-151.0,0.00012357,2]
[419736200,1775344238835,-394.936625,0.00012359,2]
[419736201,1775344238845,-500.0,0.00012359,2]
[419736202,1775344238854,-500.0,0.00012359,2]
[419736203,1775344238863,-500.0,0.00012359,2]
[419736204,1775344238872,-272.34523324,0.00012359,2]
[419736205,1775344238882,-479.52428387,0.00012359,2]
[419736206,1775344238891,-500.0,0.00012359,2]
[419736207,1775344238900,-500.0,0.00012359,2]
[419736208,1775344238909,-500.0,0.00012359,2]
[419736209,1775344238918,-500.0,0.00012359,2]
[419736210,1775344238927,-503.5387621,0.00012359,2]
[419736211,1775344238936,-300.0,0.00012359,2]
[419736212,1775344238945,-1559258.6894532,0.0001236,2]
[419736213,1775344240524,-487684.7579468,0.0001236,2]
[419736214,1775344240534,-1500000.0,0.0001236,2]
[419736215,1775344240544,-500.0,0.00012373,2]
[419736216,1775344240553,-263.24916206,0.00012373,2]
[419736217,1775344240563,-500.0,0.00012373,2]
[419736218,1775344240572,-159.94420326,0.00012373,2]
[419736219,1775344240582,-500.0,0.00012373,2]
[419736220,1775344240591,-165.01596632,0.00012373,2]
[419736221,1775344240601,-500.0,0.00012373,2]
[419736222,1775344240610,-455.14370669,0.00012373,2]
[419736223,1775344240619,-500.0,0.00012373,2]
[419736224,1775344240629,-500.0,0.00012373,2]
[419736225,1775344240638,-500.0,0.00012373,2]
[419736226,1775344240648,-220.78759916,0.00012373,2]
[419736227,1775344240657,-500.0,0.00012373,2]
[419736228,1775344240667,-500.0,0.00012373,2]
[419736229,1775344240677,-500.0,0.00012373,2]
[419736230,1775344240686,-3628.53539214,0.00012435,2]
[419736231,1775344240696,-309.8604162,0.000125,2]
[419736232,1775344240705,-500.0,0.00012532,2]
[419736233,1775344240715,-26092.91719987,0.00012575,2]
[419736234,1775344240724,-46128.81141462,0.00012664,2]
[419736235,1775344240734,-300.0,0.00012722,2]
[419736236,1775344240744,-420.0,0.00012722,2]
[419736237,1775344240754,-532.9299,0.00012722,2]
[419736238,1775344240764,-1680.0,0.00012742,2]
[419736239,1775344240773,-500.0,0.00012806,2]
[419736240,1775344240783,-419.58,0.0001286,2]
[419736241,1775344240793,-2800.0,0.000129,4]
[419736242,1775344240802,-1000.0,0.00012921,2]
[419736243,1775344240811,-500.0,0.00012921,2]
[419736244,1775344240821,-1000.0,0.00012921,2]
[419736245,1775344240830,-1000.0,0.00012921,2]
[419736246,1775344240840,-1000.0,0.00012921,2]
[419736247,1775344240849,-1000.0,0.00012921,2]
[419736248,1775344240859,-1000.0,0.00012921,2]
[419736249,1775344240868,-1000.0,0.00012921,2]
[419736250,1775344240878,-1000.0,0.00012921,2]
[419736251,1775344240888,-1000.0,0.00012921,2]
[419736252,1775344240898,-26092.91719987,0.0001299,2]
[419736253,1775344240908,-84014.97067756,0.00012999,2]
[419736254,1775344240917,-250.0,0.00013,2]
[419736255,1775344240927,-1809.16663198,0.00013,15]
[419736256,1775344240937,-5389.8813808,0.0001305,2]
[419736257,1775344240947,-46128.81141462,0.00013069,2]
[419736258,1775344240957,-503.9335937,0.0001308,2]
[419736259,1775344240966,-576.67433813,0.00013108,2]
[419736260,1775344240976,-386.01505148,0.00013108,2]
[419736261,1775344240986,-551.21950508,0.00013108,2]
[419736262,1775344240996,-265.11122129,0.0001326,2]
[419736263,1775344241006,-26092.91719987,0.00013406,2]
[419736264,1775344241016,-1500.0,0.00013468,2]
[419736265,1775344241026,-1500.0,0.00013468,2]
[419736266,1775344241036,-1500.0,0.00013468,2]
[419736267,1775344241046,-46128.81141462,0.00013473,2]
[419736268,1775344241056,-2000.0,0.00013675,2]
[419736269,1775344241066,-500.0,0.00013698,2]
[419736270,1775344241075,-268.57302384,0.00013698,2]
[419736271,1775344241085,-500.0,0.00013698,2]
[419736272,1775344241095,-500.0,0.00013698,2]
[419736273,1775344241105,-500.0,0.00013698,2]
[419736274,1775344241114,-500.0,0.00013698,2]
[419736275,1775344241124,-500.0,0.00013698,2]
[419736276,1775344241134,-500.0,0.00013698,2]
[419736277,1775344241144,-400.08,0.00013698,2]
[419736278,1775344241155,-500.0,0.00013698,2]
[419736279,1775344241165,-500.0,0.00013698,2]
[419736280,1775344241175,-500.0,0.00013698,2]
[419736281,1775344241185,-500.0,0.00013698,2]
[419736282,1775344241195,-500.0,0.00013698,2]
[419736283,1775344241205,-500.0,0.00013698,2]
[419736284,1775344241216,-500.0,0.00013698,2]
[419736285,1775344241227,-500.0,0.00013698,2]
[419736286,1775344241238,-500.0,0.00013698,2]
[419736287,1775344241249,-500.0,0.00013698,2]
[419736288,1775344241260,-375.83,0.00013698,2]
[419736289,1775344241270,-636.16,0.00013698,2]
[419736290,1775344241280,-500.0,0.00013698,2]
[419736291,1775344241290,-500.0,0.00013698,2]
[419736292,1775344241300,-500.0,0.00013698,2]
[419736294,1775344241312,-500.0,0.00013698,2]
[419736295,1775344241322,-500.0,0.00013698,2]
[419736296,1775344241334,-500.0,0.00013698,2]
[419736297,1775344241346,-500.0,0.00013698,2]
[419736298,1775344241356,-500.0,0.00013698,2]
[419736299,1775344241366,-500.0,0.00013698,2]
[419736300,1775344241377,-500.0,0.00013698,2]
[419736301,1775344241388,-500.0,0.00013698,2]
[419736302,1775344241399,-500.0,0.00013698,2]
[419736303,1775344241409,-500.0,0.00013698,2]
[419736304,1775344241419,-500.0,0.00013698,2]
[419736305,1775344241429,-500.0,0.00013698,2]
[419736306,1775344241439,-419.46,0.00013698,2]
[419736307,1775344241449,-500.0,0.00013698,2]
[419736308,1775344241459,-500.0,0.00013698,2]
[419736309,1775344241468,-584.91992494,0.00013698,2]
[419736310,1775344241479,-532.19,0.00013698,2]
[419736311,1775344241489,-532.19,0.00013698,2]
[419736312,1775344241499,-532.19,0.00013698,2]
[419736313,1775344241509,-532.19,0.00013698,2]
[419736314,1775344241520,-532.19,0.00013698,2]
[419736315,1775344241530,-532.19,0.00013698,2]
[419736316,1775344241545,-532.19,0.00013698,2]
[419736317,1775344241556,-532.19,0.00013698,2]
[419736318,1775344241566,-532.19,0.00013698,2]
[419736319,1775344241576,-532.19,0.00013698,2]
[419736320,1775344241586,-532.19,0.00013698,2]
[419736321,1775344241596,-532.19,0.00013698,2]
[419736322,1775344241605,-532.19,0.00013698,2]
[419736323,1775344241615,-532.19,0.00013698,2]
[419736324,1775344241625,-532.19,0.00013698,2]
[419736325,1775344241635,-532.19,0.00013698,2]
[419736326,1775344241649,-532.19,0.00013698,2]
[419736327,1775344241660,-532.19,0.00013698,2]
[419736328,1775344241672,-532.19,0.00013698,2]
[419736329,1775344241684,-532.19,0.00013698,2]
[419736330,1775344241694,-532.19,0.00013698,2]
[419736331,1775344241705,-532.19,0.00013698,2]
[419736332,1775344241715,-532.19,0.00013698,2]
[419736333,1775344241725,-532.28319663,0.00013698,2]
[419736334,1775344241736,-500.0,0.00013698,2]
[419736335,1775344241747,-500.0,0.00013698,2]
[419736336,1775344241758,-500.0,0.00013698,2]
[419736337,1775344241768,-500.0,0.00013698,2]
[419736338,1775344241782,-500.0,0.00013698,2]
[419736339,1775344241793,-500.0,0.00013698,2]
[419736340,1775344241803,-500.0,0.00013698,2]
[419736341,1775344241814,-448.74463116,0.00013698,2]
[419736342,1775344241824,-500.0,0.00013698,2]
[419736343,1775344241834,-500.0,0.00013698,2]
[419736344,1775344241846,-500.0,0.00013698,2]